Cogmind - Beta 13 @@@ ROGUE MODE // 2024.04.03 @ 21:16:14 Player: MasterLemons Result: Destroyed by P-70 Sage with Tesla Rifle Performance ------------- Evolutions (5) 2500 Regions Visited (11) 2200 Robots Destroyed (46) 230 Value Destroyed (1054) 1054 Prototype IDs (33) 660 Alien Tech Used (0) 0 Bonus (335) 335 TOTAL SCORE: 6979 Bonus ------- Follower Combat Kills 35 Aligned with FarCom 300 Cogmind --------- Core Integrity 0/1000 Matter 234/300 Energy 98/100 System Corruption 18% Temperature Cool (0) Movement Core (50) Location -5/Factory Parts ------- > --- POWER (2) -------- (None) > --- PROPULSION (4) --- (None) > --- UTILITY (9) ------ Advanced Hacking Suite Improved System Shield > --- WEAPON (2) ------- (None) > --- INVENTORY (5) ---- Neutrino Core Improved Hacking Suite Great Maul Peak State ------------ > --- POWER ------------ Light Angular Momentum Engine Fusion Compressor > --- PROPULSION ------- Flying Fortress v7 > --- UTILITY ---------- Experimental Sensor Array Transmission Jammer Reaction Control System Cloaking Device Improved Propulsion Shielding Hardened Medium Armor Plating Force Field Advanced Hacking Suite Improved System Shield > --- WEAPON ----------- Great Maul Great Maul > --- INVENTORY -------- Light Nuclear Core Field Propulsion Drive Insulated Plating Improved Recalibrator Axe [Rating: 93] Favorites ----------- Power Ion Engine Engine Ion Engine Power Core Light Nuclear Core Propulsion Aluminum Leg Leg Aluminum Leg Flight Unit Flying Fortress v7 Utility High-capacity Storage Unit Device Hardlight Generator Storage High-capacity Storage Unit Processor Improved Signal Interpreter Hackware Advanced Hacking Suite Protection Medium Armor Plating Weapon Autogun Energy Gun Beamcaster Ballistic Gun Autogun Launcher Rocket Launcher Impact Weapon Great Maul Slashing Weapon Katana Build | -11 -10 -10 -9 -9 -9 -8 -8 -7 -7 -6 -5 ------- Run | Yrd Mat Min Mat Min Exi Min Mat Fac Sto Fac Fac Slots Evolved 10 | . . . 2 . . . 2 2 . 2 2 Power 1 | . . . . . . . . . . . 1 Propulsion 2 | . . . 1 . . . 1 . . . . Utility 7 | . . . 1 . . . 1 2 . 2 1 Weapon . | . . . . . . . . . . . . Parts Attached 77 | 6 12 3 5 6 . 3 13 3 4 6 16 Power 9 | 1 . 1 1 . . . 1 . 1 1 3 Engine 6 | 1 . 1 1 . . . 1 . 1 1 . Core 3 | . . . . . . . . . . . 3 Reactor . | . . . . . . . . . . . . Propulsion 14 | 2 2 1 1 2 . . 5 . . . 1 Treads . | . . . . . . . . . . . . Leg 12 | 2 2 1 1 2 . . 4 . . . . Wheel . | . . . . . . . . . . . . Hover . | . . . . . . . . . . . . Flight 2 | . . . . . . . 1 . . . 1 Utility 31 | 1 5 1 1 4 . . 4 3 . 3 9 Device 15 | . . . 1 1 . . 3 2 . 3 5 Storage 3 | 1 2 . . . . . . . . . . Processor 1 | . . . . . . . . 1 . . . Hackware 2 | . . . . . . . . . . . 2 Protection 10 | . 3 1 . 3 . . 1 . . . 2 Artifact . | . . . . . . . . . . . . Weapon 23 | 2 5 . 2 . . 3 3 . 3 2 3 Energy Gun 3 | 1 . . . . . 1 . . 1 . . Energy Cannon . | . . . . . . . . . . . . Ballistic Gun 10 | 1 5 . 2 . . 1 1 . . . . Ballistic Cannon . | . . . . . . . . . . . . Launcher 6 | . . . . . . 1 2 . . 2 1 Special Weapon . | . . . . . . . . . . . . Impact Weapon 3 | . . . . . . . . . 1 . 2 Slashing Weapon 1 | . . . . . . . . . 1 . . Piercing Weapon . | . . . . . . . . . . . . Special Melee Weapon . | . . . . . . . . . . . . Unidentified Prototypes 1 | . . . . 1 . . . . . . . Parts Lost 25 | . 4 1 3 . . . . . 2 . 15 Power 3 | . 1 . . . . . . . . . 2 Propulsion 6 | . 2 . 2 . . . . . . . 2 Utility 13 | . 1 1 1 . . . . . 1 . 9 Weapon 3 | . . . . . . . . . 1 . 2 Highest Loss Streak 8 | . 2 1 3 . . . . . 2 . 8 To Critical Strikes . | . . . . . . . . . . . . Average Slot Usage (%) 88 | . 87 99 85 95 100 100 80 75 65 65 70 Engine 9 | . 9 14 11 11 11 11 9 7 7 6 4 Leg 21 | . 23 28 27 32 33 33 21 . . . . Flight 1 | . . . . . . . 3 7 7 6 3 Device 7 | . . . 5 4 . . 5 23 23 27 27 Storage 9 | . 14 14 11 11 11 11 6 . . . . Hackware 1 | . . . . . . . . . . . 8 Protection 13 | . 10 13 8 13 22 22 17 15 10 6 8 Energy Gun 1 | . 4 . . . . 10 3 . 2 . . Ballistic Gun 16 | . 23 28 22 22 22 11 7 . . . . Launcher 1 | . . . . . . . 5 15 . 12 . Impact Weapon 1 | . . . . . . . . . 3 . 8 Naked Turns . | . . . . . . . . . . . . Heaviest Build 65 | 13 58 56 59 65 59 61 61 28 28 39 50 Greatest Support 50 | 20 20 20 35 40 40 40 50 50 50 50 50 Greatest Overweight (x) 13 | . 5 2 3 3 1 1 1 . 6 . 13 Average Overweight (x) . | . 1 2 1 1 1 1 . . . . . Largest Inventory Capacity 20 | 8 20 20 20 20 20 20 20 5 5 5 5 Average Capacity 15 | 6 18 20 20 20 20 20 15 5 5 5 5 Most Carried 20 | 5 19 20 19 19 20 20 20 5 5 5 5 Average Carried 14 | 3 13 19 17 16 18 20 15 4 4 4 4 Final Capacity 20 | 8 20 20 20 20 20 20 5 5 5 5 5 Final Carried 20 | 3 18 19 19 15 20 20 5 5 4 5 3 Class Distribution -------------------- 63% | Mutant 12% | Scout 11% | Scavenger-Mutant 6% | Hacker-Ninja Dominant Class ---------------- Mutant | -10/Materials Mutant | -10/Mines Mutant | -9/Materials Mutant | -9/Mines Mutant | -9/Exiles Scavenger-Mutant | -8/Mines Scavenger-Mutant | -8/Materials Scout | -7/Factory Scout | -7/Storage Scout | -6/Factory Hacker-Ninja | -5/Factory Resources | -11 -10 -10 -9 -9 -9 -8 -8 -7 -7 -6 -5 ----------- Run | Yrd Mat Min Mat Min Exi Min Mat Fac Sto Fac Fac Matter Collected 1878 | 219 393 222 173 130 . 33 157 . 309 . 242 Remotely 406 | . . . . . . . 16 . 290 . 100 Salvage Created 1439 | . 422 233 173 68 . 16 234 . 151 . 142 Parts 85 | . 38 14 12 4 . 3 10 . 4 . . Haulers Intercepted . | . . . . . . . . . . . . Recyclers Shooed 2 | . . . . . . . . . 2 . . Parts Field Recycled . | . . . . . . . . . . . . Retrieved Matter . | . . . . . . . . . . . . Parts Self-Destructed . | . . . . . . . . . . . . Prevented . | . . . . . . . . . . . . Kills | -11 -10 -10 -9 -9 -9 -8 -8 -7 -7 -6 -5 ------- Run | Yrd Mat Min Mat Min Exi Min Mat Fac Sto Fac Fac Combat Hostiles Destroyed 39 | . 14 7 4 4 . 3 7 . . . . Guns 33 | . 14 7 4 4 . 1 3 . . . . AOE 6 | . . . . . . 2 4 . . . . Classes Destroyed 7 | . 3 1 1 . . . 2 . . . . Worker 2 | . . . . . . . 1 . 1 . . Builder 1 | . . 1 . . . . . . . . . Recycler 4 | . 1 . . . . . . . 2 . 1 Swarmer 19 | . 9 3 . 4 . 3 . . . . . Grunt 17 | . 5 4 3 . . . 5 . . . . Duelist 1 | . . . . . . . 1 . . . . Sentry 2 | . . . 1 . . . 1 . . . . Best Kill Streak 4 | . 3 4 3 4 . 3 4 . 3 . 1 Combat Bots Only 4 | . 3 3 3 4 . 3 3 . . . . Max Kills in Single Turn 2 | . 1 2 1 1 . 1 2 . 1 . 1 Gunslinging . | . . . . . . . . . . . . Exploded 1 | . . . . . . 1 1 . . . . Melee . | . . . . . . . . . . . . Uniques/NPCs Destroyed . | . . . . . . . . . . . . Combat | -11 -10 -10 -9 -9 -9 -8 -8 -7 -7 -6 -5 -------- Run | Yrd Mat Min Mat Min Exi Min Mat Fac Sto Fac Fac Hostile Shots Fired 622 | . 116 44 37 10 . 13 36 14 196 . 156 Missed 251 | . 35 14 6 3 . 3 17 6 107 . 60 Damage Taken 5307 | . 685 347 412 51 . 131 308 123 832 . 2418 Core 1381 | . 58 50 56 . . 10 32 . 168 . 1007 Absorbed by Shields 211 | . . . . . . . . . 16 . 195 Redirected to Shielding 69 | . . . . . . . 6 5 15 . 43 Regen/Repaired (Parts) 142 | . . . . . . . . . 142 . . Core Remaining (%) 84 | 100 . 56 . . . 83 94 . 76 100 . Volleys Fired 122 | . 39 24 19 7 . 7 24 . . . 2 Largest 2 | . 2 2 2 2 . 2 2 . . . 1 Hottest 98 | . 70 40 46 46 . 56 98 . . . 39 Shots Fired 230 | . 78 48 38 14 . 9 41 . . . 2 Gun 208 | . 78 48 38 14 . 7 23 . . . . Cannon . | . . . . . . . . . . . . Launcher 22 | . . . . . . 2 18 . . . 2 Special . | . . . . . . . . . . . . Kinetic 196 | . 77 48 38 14 . 7 12 . . . . Thermal 12 | . 1 . . . . . 11 . . . . Explosive 22 | . . . . . . 2 18 . . . 2 Electromagnetic . | . . . . . . . . . . . . Robot Hit Streak 12 | . 4 8 8 8 . 5 11 . . . 12 Robot Miss Streak 5 | . 5 3 2 2 . 2 3 . . . 1 Penetration Max . | . . . . . . . . . . . . Secondary Targets 5 | . 2 1 2 . . . . . . . . Max Gunslinging Chain 1 | . 1 1 1 . . . . . . . . Shots Hit Robots 147 | . 33 31 28 10 . 6 31 . 6 . 2 Core Hits 72 | . 18 14 9 4 . 4 20 . 2 . 1 Critical Kills 1 | . . 1 . . . . . . . . . Critical Parts Destroyed . | . . . . . . . . . . . . Critical Strikes 2 | . . 1 . . . . . . 1 . . Destroy 1 | . . 1 . . . . . . . . . Sever 1 | . . . . . . . . . 1 . . Melee Attacks 33 | . . . . . . . . . 17 . 16 Impact 21 | . . . . . . . . . 5 . 16 Slashing 12 | . . . . . . . . . 12 . . Piercing . | . . . . . . . . . . . . Sneak Attacks 3 | . . . . . . . . . 2 . 1 Combat Hostiles . | . . . . . . . . . . . . Follow-up Attacks . | . . . . . . . . . . . . Damage Inflicted 3037 | . 512 441 406 143 . 202 856 . 279 . 198 Guns 1865 | . 512 426 406 143 . 69 309 . . . . Cannons . | . . . . . . . . . . . . Explosions 765 | . . . . . . 133 547 . . . 85 Melee 390 | . . . . . . . . . 277 . 113 Ramming 17 | . . 15 . . . . . . 2 . . Kinetic 1666 | . 500 426 406 143 . 69 122 . . . . Thermal 199 | . 12 . . . . . 187 . . . . Explosive 765 | . . . . . . 133 547 . . . 85 Electromagnetic . | . . . . . . . . . . . . Impact 113 | . . . . . . . . . . . 113 Slashing 277 | . . . . . . . . . 277 . . Piercing . | . . . . . . . . . . . . Highest Corruption 18 | . . . . . . . . . . . 18 Average Corruption 7 | . . . . . . . . . . . 7 Corruption Purged . | . . . . . . . . . . . . Corruption Blocked . | . . . . . . . . . . . . Effects 20 | . . . . . . . . . . . 20 Message Errors 4 | . . . . . . . . . . . 4 Matter Fused 7 | . . . . . . . . . . . 7 Heat Flow Errors 1 | . . . . . . . . . . . 1 Parts Rejected 1 | . . . . . . . . . . . 1 Data Loss (minor) 4 | . . . . . . . . . . . 4 Misdirections 3 | . . . . . . . . . . . 3 Overload Shots . | . . . . . . . . . . . . Overflow Damage 141 | . . . . . . . . . 47 . 94 Projectiles . | . . . . . . . . . . . . Explosions 11 | . . . . . . . . . . . 11 Melee 130 | . . . . . . . . . 47 . 83 Knockbacks 1 | . . . . . . . . . . . 1 Impact 1 | . . . . . . . . . . . 1 Kinetic . | . . . . . . . . . . . . Secondary . | . . . . . . . . . . . . Self-Inflicted Damage 117 | . . . . . . 51 14 . . . 52 Shots 5 | . . . . . . 2 2 . . . 1 Rammed 3 | . . . . . . . . . 3 . . Targets Rammed 4 | . . 1 . . . . . . 3 . . Kicked 1 | . . 1 . . . . . . . . . Crushed . | . . . . . . . . . . . . Highest Temperature 315 | . 36 8 97 12 . 16 315 1 20 . 126 Average Temperature 46 | . 13 3 43 7 . 7 98 1 13 . 59 Received Heat Transfer 1019 | . 66 168 207 . . . 162 72 290 . 54 Effects 1 | . . . . . . . 1 . . . . Interference 1 | . . . . . . . 1 . . . . Siege Activations . | . . . . . . . . . . . . Robots Corrupted . | . . . . . . . . . . . . Combat Hostiles . | . . . . . . . . . . . . Parts Fried 2 | . . . . . . . . . . . 2 Impact Corruptions 2 | . . . . . . . . . . . 2 Robots Melted . | . . . . . . . . . . . . Combat Hostiles . | . . . . . . . . . . . . Parts Melted . | . . . . . . . . . . . . Heat Transferred 370 | . 37 . . . . . 333 . . . . Parts Sabotaged . | . . . . . . . . . . . . Parts Stolen . | . . . . . . . . . . . . Parts Stripped . | . . . . . . . . . . . . Power Chain Reactions . | . . . . . . . . . . . . Alert | -11 -10 -10 -9 -9 -9 -8 -8 -7 -7 -6 -5 ------- Run | Yrd Mat Min Mat Min Exi Min Mat Fac Sto Fac Fac Peak Influence 355 | . 278 117 105 90 . 94 202 132 355 161 138 Initial 161 | . . 67 . 40 . . . 42 59 161 78 Average 62 | . 88 49 56 19 . 60 54 62 166 161 48 Maximum Alert Level 1 | . 1 . . . . . 1 . 1 . . Low Security (%) 97 | 100 94 100 100 100 . 100 98 100 73 100 100 Level 1 2 | . 5 . . . . . 1 . 26 . . Level 2 . | . . . . . . . . . . . . Level 3 . | . . . . . . . . . . . . Level 4 . | . . . . . . . . . . . . Level 5 . | . . . . . . . . . . . . High Security . | . . . . . . . . . . . . Max Security . | . . . . . . . . . . . . Squads Dispatched 11 | . 2 . . . . . 1 1 4 . 3 Investigation 4 | . 2 . . . . . 1 . . . 1 Extermination 2 | . . . . . . . . . 1 . 1 Reinforcement 3 | . . . . . . . . 1 1 . 1 Assault 2 | . . . . . . . . . 2 . . Garrison . | . . . . . . . . . . . . Intercept . | . . . . . . . . . . . . Searches Triggered . | . . . . . . . . . . . . Construction Impeded . | . . . . . . . . . . . . Haulers Reinforced . | . . . . . . . . . . . . Active Scanning Responses . | . . . . . . . . . . . . Cargo Convoy Interrupts . | . . . . . . . . . . . . Stealth | -11 -10 -10 -9 -9 -9 -8 -8 -7 -7 -6 -5 --------- Run | Yrd Mat Min Mat Min Exi Min Mat Fac Sto Fac Fac Distress Signals 3 | . 1 . . . . . . . 1 . 1 Communications Jammed 1 | . . . . . . . . . . . 1 Distress Signals 1 | . . . . . . . . . . . 1 Times Spotted 97 | . 24 7 4 4 . 4 9 6 25 . 14 Peak Tracking Total 15 | . 4 2 3 4 . 4 4 4 15 . 6 Tactical Retreats 11 | . 1 . . . . . . 2 5 . 3 Traps | -11 -10 -10 -9 -9 -9 -8 -8 -7 -7 -6 -5 ------- Run | Yrd Mat Min Mat Min Exi Min Mat Fac Sto Fac Fac Traps Triggered 3 | . 1 . . . . . 1 1 . . . Indirectly . | . . . . . . . . . . . . Trap Hack Attempts . | . . . . . . . . . . . . Triggered . | . . . . . . . . . . . . Disarmed . | . . . . . . . . . . . . Reprogrammed . | . . . . . . . . . . . . Reused . | . . . . . . . . . . . . Traps Extracted . | . . . . . . . . . . . . Installed . | . . . . . . . . . . . . Triggered . | . . . . . . . . . . . . Machines | -11 -10 -10 -9 -9 -9 -8 -8 -7 -7 -6 -5 ---------- Run | Yrd Mat Min Mat Min Exi Min Mat Fac Sto Fac Fac Machines Disabled 1 | . . . . . . . 1 . . . . Max in Single Turn 1 | . . . . . . . 1 . . . . Machines Repaired . | . . . . . . . . . . . . Machines Dismantled . | . . . . . . . . . . . . Machines Sabotaged . | . . . . . . . . . . . . Overloaded Fab Kills . | . . . . . . . . . . . . Hacking | -11 -10 -10 -9 -9 -9 -8 -8 -7 -7 -6 -5 --------- Run | Yrd Mat Min Mat Min Exi Min Mat Fac Sto Fac Fac Machines Accessed 23 | . 2 . 2 1 3 . 2 . 1 2 10 Terminals 11 | . 2 . 2 . . . 1 . . 2 4 Fabricators 1 | . . . . . . . . . . . 1 Repair Stations 1 | . . . . . . . . . 1 . . Recycling Units 5 | . . . . . . . 1 . . . 4 Scanalyzers 1 | . . . . . . . . . . . 1 Garrison Access . | . . . . . . . . . . . . Total Hacks 80 | . 6 . 4 1 27 . 4 . 2 3 33 Successful 57 | . 1 . 4 1 27 . 2 . 2 . 20 Failed 22 | . 5 . . . . . 2 . . 3 12 Catastrophic 3 | . 1 . . . . . . . . 2 . Database Lockouts 1 | . . . . . . . . . . . 1 Manual 1 | . . . . . 1 . . . . . . Terminals 30 | . 6 . 4 . . . 3 . . 3 14 Fabricators 1 | . . . . . . . . . . . 1 Repair Stations 2 | . . . . . . . . . 2 . . Recycling Units 14 | . . . . . . . 1 . . . 13 Scanalyzers 5 | . . . . . . . . . . . 5 Garrison Access . | . . . . . . . . . . . . Terminal Hacks 40 | . 1 . 4 1 27 . 1 . . . 6 Record 32 | . . . . . 26 . . . . . 6 Prototype ID Bank 3 | . 1 . 1 . . . 1 . . . . Open Door 1 | . . . . 1 . . . . . . . Emergency Access Points 2 | . . . 2 . . . . . . . . Zone Layout 1 | . . . 1 . . . . . . . . Derelict Proto ID Bank 1 | . . . . . 1 . . . . . . Fabricator Hacks 1 | . . . . . . . . . . . 1 Load Schematic 1 | . . . . . . . . . . . 1 Repair Station Hacks 2 | . . . . . . . . . 2 . . Scan Component 1 | . . . . . . . . . 1 . . Repair 1 | . . . . . . . . . 1 . . Recycling Unit Hacks 9 | . . . . . . . 1 . . . 8 Report Inventory 5 | . . . . . . . 1 . . . 4 Retrieve Matter 2 | . . . . . . . . . . . 2 Retrieve Components 2 | . . . . . . . . . . . 2 Scanalyzer 5 | . . . . . . . . . . . 5 Insert Component 4 | . . . . . . . . . . . 4 Analyze 1 | . . . . . . . . . . . 1 Garrison Access Hacks . | . . . . . . . . . . . . Unauthorized Hacks . | . . . . . . . . . . . . Terminals . | . . . . . . . . . . . . Fabricators . | . . . . . . . . . . . . Repair Stations . | . . . . . . . . . . . . Recycling Units . | . . . . . . . . . . . . Scanalyzers . | . . . . . . . . . . . . Garrison Access . | . . . . . . . . . . . . Data Cores Recovered . | . . . . . . . . . . . . Used . | . . . . . . . . . . . . Hacking Detections 12 | . 2 . . . . . 2 . 1 2 5 Full Trace Events 3 | . 2 . . . . . . . . . 1 Feedback Events . | . . . . . . . . . . . . Feedback Blocked . | . . . . . . . . . . . . Robot Schematics Acquired . | . . . . . . . . . . . . Robots Built . | . . . . . . . . . . . . Authchips . | . . . . . . . . . . . . Time . | . . . . . . . . . . . . Total Robot Build Rating . | . . . . . . . . . . . . Part Schematics Acquired 1 | . . . . . . . . . . . 1 Parts Built . | . . . . . . . . . . . . Authchips . | . . . . . . . . . . . . Time . | . . . . . . . . . . . . Total Part Build Rating . | . . . . . . . . . . . . Parts Repaired 1 | . . . . . . . . . 1 . . Time 19 | . . . . . . . . . 19 . . Parts Recycled . | . . . . . . . . . . . . Recycled Matter . | . . . . . . . . . . . . Retrieved Matter . | . . . . . . . . . . . . Retrieved Components 5 | . . . . . . . . . . . 5 Parts Scanalyzed 1 | . . . . . . . . . . . 1 Part Schematics Acquired 1 | . . . . . . . . . . . 1 Parts Damaged . | . . . . . . . . . . . . Bothacking | -11 -10 -10 -9 -9 -9 -8 -8 -7 -7 -6 -5 ------------ Run | Yrd Mat Min Mat Min Exi Min Mat Fac Sto Fac Fac Used RIF Installer . | . . . . . . . . . . . . Robots Hacked . | . . . . . . . . . . . . Non-combat . | . . . . . . . . . . . . Combat . | . . . . . . . . . . . . Robot Hacks Applied . | . . . . . . . . . . . . Relay Couplers Released . | . . . . . . . . . . . . Fabnet Peak Effective % . | . . . . . . . . . . . . Robots Rewired . | . . . . . . . . . . . . Allies Hacked . | . . . . . . . . . . . . Hacks Repelled . | . . . . . . . . . . . . Allies | -11 -10 -10 -9 -9 -9 -8 -8 -7 -7 -6 -5 -------- Run | Yrd Mat Min Mat Min Exi Min Mat Fac Sto Fac Fac Total Allies 2 | . . . . . . . . . 2 . . Largest Group 2 | . . . . . . . . . 2 . . Highest-Rated Group 62 | . . . . . . . . . 62 . . Highest-Rated Ally 31 | . . . . . . . . . 31 . . Total Orders 15 | . . . . 15 . . . . . . . EXPLORE 15 | . . . . 15 . . . . . . . Ally Attacks 12 | . . . . . . . . . 12 . . Total Damage 148 | . . . . . . . . . 148 . . Kills 1 | . . . . . . . . . 1 . . Allies Corrupted . | . . . . . . . . . . . . Allies Melted . | . . . . . . . . . . . . Intel | -11 -10 -10 -9 -9 -9 -8 -8 -7 -7 -6 -5 ------- Run | Yrd Mat Min Mat Min Exi Min Mat Fac Sto Fac Fac Robot Analysis Total . | . . . . . . . . . . . . Derelict Logs Recovered 4 | . . 2 . 2 . . . . . . . Drone Launches 16 | . . . . 16 . . . . . . . Drone Recoveries . | . . . . . . . . . . . . Exploration | -11 -10 -10 -9 -9 -9 -8 -8 -7 -7 -6 -5 ------------- Run | Yrd Mat Min Mat Min Exi Min Mat Fac Sto Fac Fac Turns Passed 7545 | 52 1191 1350 265 961 876 611 464 252 295 222 1006 Spaces Moved 5168 | 42 416 482 85 475 461 311 330 217 367 412 1570 Core 229 | 16 . . . . . . . . 1 . 212 Treads . | . . . . . . . . . . . . Legs 2372 | 26 416 482 85 475 461 311 116 . . . . Wheels . | . . . . . . . . . . . . Hover . | . . . . . . . . . . . . Flight 2567 | . . . . . . . 214 217 366 412 1358 Fastest Speed 50 | 50 120 260 190 190 190 190 50 50 50 50 50 Average Speed 128 | 93 249 260 221 190 190 190 106 50 50 50 56 Slowest Speed 700 | 120 470 260 330 330 190 190 190 50 350 50 700 Overloaded Moves . | . . . . . . . . . . . . Propulsion Burnouts . | . . . . . . . . . . . . Robots Hopped 18 | . . . . . . . . 5 11 . 2 Cave-ins Triggered 1 | . . . . . . . . . . . 1 Exploration Rate (%) 48 | 3 80 84 11 98 92 69 31 5 63 10 41 Regions Visited 11 Branch Regions 5 Pre-discovered Areas 3 | . . 1 . 1 1 . . . . . . Known Exits Taken 1 | . . . . . . . . 1 . . . Unknown Exits Taken 10 | 1 1 1 1 1 1 1 1 . 1 1 . Scrap Searched 3 | . . 1 . 1 . 1 . . . . . Spaces Dug 17 | . . . . . . . . . 7 . 10 Terrain Destroyed 136 | . . . . . . 24 69 . 7 . 36 Melee 17 | . . . . . . . . . 7 . 10 Projectile . | . . . . . . . . . . . . AOE 119 | . . . . . . 24 69 . . . 26 Terrain Rammed . | . . . . . . . . . . . . Walls Destroyed . | . . . . . . . . . . . . Machines Disabled . | . . . . . . . . . . . . Actions | -11 -10 -10 -9 -9 -9 -8 -8 -7 -7 -6 -5 --------- Run | Yrd Mat Min Mat Min Exi Min Mat Fac Sto Fac Fac Total 5825 | 54 511 531 132 522 462 322 412 355 431 428 1665 Wait 296 | . 11 14 20 28 . 2 13 135 42 . 31 Move 5121 | 41 415 481 84 474 460 310 329 206 344 411 1566 Hop 18 | . . . . . . . . 5 11 . 2 Pick Up 84 | 7 27 6 3 2 2 . 7 2 5 5 18 Fast Attach 11 | 2 . . . . . . 2 . 1 2 4 Attach 44 | 4 9 3 2 6 . . 6 2 2 1 9 Detach 4 | . . . . 2 . . 1 . . . 1 Swap 22 | . 3 . 3 . . 3 5 1 1 3 3 Drop 66 | . 7 2 1 3 . . 25 1 5 6 16 Fire 122 | . 39 24 19 7 . 7 24 . . . 2 Melee 30 | . . . . . . . . . 17 . 13 Ram 3 | . . . . . . . . . 3 . . Kick 1 | . . 1 . . . . . . . . . Crush . | . . . . . . . . . . . . Escape Stasis 3 | . . . . . . . . 3 . . . Rewire . | . . . . . . . . . . . . Trap . | . . . . . . . . . . . . Miscellaneous . | . . . . . . . . . . . . Route ------- -11/Scrapyard -10/Materials (discovered 4 exits: *Mat x3 / [*Min]) -10/Mines -9/Materials -9/Mines (discovered 3 exits: *Mat x2 / *Exi) -9/Exiles -8/Mines (discovered 2 exits: *Mat x2) -8/Materials -7/Factory -7/Storage -6/Factory (discovered 2 exits: *Fac / [*Low]) -5/Factory History --------- Turn | Location | Event 10 | -11/Scrapyard | Discovered new exit (range 16) 53 | -11/Scrapyard | Entered Materials 163 | -10/Materials | Discovered new exit (range 3) 302 | -10/Materials | Build established: Mutant 534 | -10/Materials | Discovered new exit (range 7) 781 | -10/Materials | Discovered new exit (range 15) 1197 | -10/Materials | Discovered new exit (range 11) 1244 | -10/Materials | Entered Mines 1254 | -10/Mines | Learned Materials terminal intel 1293 | -10/Mines | Found a damaged Exp. Sensor Array with a note attached 1324 | -10/Mines | Found Prototype Device 1543 | -10/Mines | Joined a pair of Derelicts in attacking an 0b10 outpost 2011 | -10/Mines | Learned location of Storage (-7) 2555 | -10/Mines | Discovered new exit (range 7) 2594 | -10/Mines | Entered Materials 2594 | -9/Materials | Evolved 2 slots: Propulsion x1, Utility x1 2595 | -9/Materials | Loaded intel: 12 terminal locations 2760 | -9/Materials | Discovered new exit (range 13) 2821 | -9/Materials | Lost 3 parts (2n1u) 2859 | -9/Materials | Entered Mines 2929 | -9/Mines | Found the Drone Emporium 2939 | -9/Mines | Found Prototype Device 2962 | -9/Mines | Identified Decoy Drone Bay 3179 | -9/Mines | Discovered new exit (range 4) 3254 | -9/Mines | Learned Materials stockpile data 3401 | -9/Mines | Discovered new exit (range 5) 3408 | -9/Mines | Received a Rocket Launcher from a helpful Derelict 3812 | -9/Mines | Deemed a non-threat by the Exiles lab entrance 3812 | -9/Mines | Discovered new exit (range 5) 3820 | -9/Mines | Entered Exiles 3870 | -9/Exiles | Met 8R-AWN 3900 | -9/Exiles | Met EX-HEX 3959 | -9/Exiles | Met EX-BIN 3991 | -9/Exiles | Aligned with FarCom system 3993 | -9/Exiles | Given EX-Vault access code 4056 | -9/Exiles | Opened EX-Vault 4071 | -9/Exiles | Found Flying Fortress v7 4112 | -9/Exiles | Warned to stay clear of 0b10 Research branches 4194 | -9/Exiles | Met EX-DEC 4327 | -9/Exiles | Visited The Gauntlet 4584 | -9/Exiles | Learned location of Zion (-7) 4681 | -9/Exiles | Discovered new exit (range 10) 4696 | -9/Exiles | Left Exiles lab with Flying Fortress v7 4696 | -9/Exiles | Entered Mines 5030 | -8/Mines | Build established: Scavenger-Mutant 5050 | -8/Mines | Discovered new exit (range 13) 5288 | -8/Mines | Discovered new exit (range 7) 5307 | -8/Mines | Entered Materials 5307 | -8/Materials | Evolved 2 slots: Propulsion x1, Utility x1 5762 | -8/Materials | Discovered new exit (range 15) 5771 | -8/Materials | Entered Factory 5771 | -7/Factory | Evolved 2 slots: Utility x2 5919 | -7/Factory | Build established: Scout 6020 | -7/Factory | Discovered new exit (range 6) 6022 | -7/Factory | Identified exit to Storage 6023 | -7/Factory | Entered Storage 6067 | -7/Storage | Repaired Hrd. Medium Armor Plating 6182 | -7/Storage | Met a pair of Derelict thieves 6310 | -7/Storage | Discovered new exit (range 16) 6318 | -7/Storage | Entered Factory 6318 | -6/Factory | Evolved 2 slots: Utility x2 6464 | -6/Factory | Discovered new exit (range 6) 6504 | -6/Factory | Discovered new exit (range 16) 6540 | -6/Factory | Entered another Factory area 6540 | -5/Factory | Evolved 2 slots: Power x1, Utility x1 6811 | -5/Factory | Central database locked down 6830 | -5/Factory | Identified Exp. Sensor Array 6838 | -5/Factory | Found Prototype Launcher 6843 | -5/Factory | Identified Tesla Bomb Launcher 6868 | -5/Factory | Crushed by falling debris 7099 | -5/Factory | Build established: Hacker-Ninja 7361 | -5/Factory | System corruption reached 10% 7380 | -5/Factory | Lost 5 parts (2n3u) 7451 | -5/Factory | Core integrity fell below 50% 7485 | -5/Factory | Lost 8 parts (2p5u1w) 7539 | -5/Factory | Core integrity fell below 20% 7546 | -5/Factory | Destroyed by P-70 Sage with Tesla Rifle Last Messages --------------- 07454_ Great Maul destroyed. 07456_ P-70 Sage resets P-70 Sage, system corruption cleaned. 07464_ System corrupted: Component data lost. 07480_ System corrupted: Transmission Jammer rejected. 07494_ Acquired Hvy. Missile Launcher. 07500_ Destroyed Antigrav System. 07501_ System corrupted: Matter fused (-6). 07503_ Hvy. Missile Launcher destroyed. 07506_ P-70 Sage resets P-70 Sage, system corruption cleaned. 07519_ K-01 Serf cleans the Pressure Siphon. 07528_ Drone sends a signal. 07529_ W-25 Informer sends out distress signal. 07534_ Penetrated by Slug. 07537_ Slug penetrates Wall. 07537_ Slug penetrates Terminal. 07537_ Terminal disabled. 07538_ Penetrated by Slug. 07544_ Slug penetrates Wall. 07545_ Q8E5#